Cogmind - Beta 16.1 @@@ ROGUE MODE // 2026.03.31 @ 22:32:05 Player: daxter767676 Result: Destroyed by 5K-630(R) with Subdweller Laser Performance ------------- Evolutions (0) 0 Regions Visited (2) 400 Robots Destroyed (12) 60 Value Destroyed (432) 432 Prototype IDs (0) 0 Alien Tech Used (0) 0 Bonus (0) 0 TOTAL SCORE: 892 Bonus ------- None Cogmind --------- Core Integrity 0/250 Matter 269/300 Energy 125/125 System Corruption 0% Temperature Cool (6) Movement Rolling (95) Ox1 Location -10/Subcaves Parts ------- > --- POWER (1) -------- Light Ion Engine > --- PROPULSION (2) --- Wheel > --- UTILITY (2) ------ Medium Storage Unit Core Shielding > --- WEAPON (2) ------- Medium Laser > --- INVENTORY (10) --- Light Nuclear Core Wheel Compact Wheel Heat Sink High-capacity Storage Unit Seismic Detector Light Armor Plating Hacking Suite Mining Laser Peak State ------------ > --- POWER ------------ Ion Engine > --- PROPULSION ------- Aluminum Leg Aluminum Leg > --- UTILITY ---------- Small Storage Unit Seismic Detector > --- WEAPON ----------- Medium Laser Assault Rifle > --- INVENTORY -------- Light Nuclear Core Aluminum Leg Aluminum Leg Wheel Compact Wheel High-capacity Storage Unit Light Armor Plating Medium Laser [Rating: 8] Favorites ----------- Power Ion Engine Engine Ion Engine Propulsion Aluminum Leg Leg Aluminum Leg Wheel Wheel Utility Small Storage Unit Device Seismic Detector Storage Small Storage Unit Protection Core Shielding Weapon Assault Rifle Energy Gun Medium Laser Ballistic Gun Assault Rifle Ballistic Cannon Light Cannon Build | -11 -10 -10 ------- Run | Yrd Mat Sub Slots Evolved . | . . . Power . | . . . Propulsion . | . . . Utility . | . . . Weapon . | . . . Parts Attached 18 | . 16 2 Power 4 | . 4 . Engine 4 | . 4 . Core . | . . . Reactor . | . . . Propulsion 6 | . 5 1 Treads . | . . . Leg 5 | . 5 . Wheel 1 | . . 1 Hover . | . . . Flight . | . . . Utility 3 | . 3 . Device 1 | . 1 . Storage 1 | . 1 . Processor . | . . . Hackware . | . . . Protection 1 | . 1 . Artifact . | . . . Weapon 5 | . 4 1 Energy Gun 3 | . 2 1 Energy Cannon . | . . . Ballistic Gun 1 | . 1 . Ballistic Cannon 1 | . 1 . Launcher . | . . . Special Weapon . | . . . Impact Weapon . | . . . Slashing Weapon . | . . . Piercing Weapon . | . . . Special Melee Weapon . | . . . Unidentified Prototypes . | . . . Parts Lost 7 | . 3 4 Power . | . . . Propulsion 3 | . 1 2 Utility . | . . . Weapon 4 | . 2 2 Highest Loss Streak 4 | . 2 4 To Critical Strikes . | . . . Average Backups 8 | . 8 10 Power 1 | . 1 1 Propulsion 3 | . 3 2 Utility 2 | . 2 5 Weapon 1 | . 1 2 Tool/Special . | . . . Unused Backups 14 | . 6 8 Power 2 | . 1 1 Propulsion 5 | . 3 2 Utility 5 | . 1 4 Weapon 2 | . 1 1 Tool/Special . | . . . Average Slot Usage (%) 94 | . 94 95 Engine 13 | . 13 14 Leg 26 | . 27 20 Device 7 | . 7 . Storage 14 | . 14 14 Protection 5 | . 4 14 Energy Gun 14 | . 14 14 Ballistic Gun 8 | . 9 . Ballistic Cannon 1 | . . 12 Peak Build Rating 8 | . 8 8 Average Rating 7 | . 7 7 On Entrance 6 | 6 6 8 Avg Prop Armor Cover (%) 8 | . . 8 Naked Turns . | . . . Heaviest Build 20 | 14 20 18 Greatest Support 20 | 20 20 20 Greatest Overweight (x) 4 | . 4 1 Average Overweight (x) . | . . . Largest Inventory Capacity 10 | . 10 10 Average Capacity 8 | . 8 10 Most Carried 10 | . 10 10 Average Carried 8 | . 8 9 Final Capacity 10 | 8 10 10 Final Carried 10 | 6 10 9 Class Distribution -------------------- 100% | Mutant Dominant Class ---------------- Mutant | -10/Materials Mutant | -10/Subcaves Resources | -11 -10 -10 ----------- Run | Yrd Mat Sub Matter Collected 502 | 189 300 13 Remotely . | . . . Salvage Created 481 | . 441 40 Parts 22 | . 21 1 Haulers Intercepted . | . . . Recyclers Shooed . | . . . Parts Field Recycled . | . . . Retrieved Matter . | . . . Parts Self-Destructed 6 | . . 6 Prevented . | . . . Parts Restored . | . . . Kills | -11 -10 -10 ------- Run | Yrd Mat Sub Combat Hostiles Destroyed 11 | . 10 1 Guns 8 | . 7 1 AOE 2 | . 2 . Classes Destroyed 3 | . 2 1 Operator 1 | . 1 . Grunt 10 | . 10 . Subdweller 1 | . . 1 Best Kill Streak 2 | . 2 1 Combat Bots Only 2 | . 2 1 Max Kills in Single Turn 1 | . 1 1 Gunslinging . | . . . Exploded 1 | . 1 . Melee . | . . . Uniques/NPCs Destroyed . | . . . Combat | -11 -10 -10 -------- Run | Yrd Mat Sub Hostile Shots Fired 87 | . 59 28 Missed 24 | . 16 8 Hits 63 | . 43 20 Projectile 63 | . 43 20 AOE 2 | . 2 . Critical Strikes 4 | . 1 3 Actively Blocked 1 | . . 1 Damage Taken 1159 | . 715 444 Core 265 | . 164 101 Absorbed by Shields . | . . . Redirected to Shielding 41 | . 17 24 Core Remaining (%) 100 | 100 . . Volleys Fired 55 | . 44 11 Largest 2 | . 2 2 Hottest 90 | . 90 70 Shots Fired 92 | . 75 17 Gun 86 | . 75 11 Cannon 6 | . . 6 Launcher . | . . . Special . | . . . Kinetic 34 | . 28 6 Thermal 45 | . 34 11 Explosive . | . . . Electromagnetic 13 | . 13 . Robot Hit Streak 15 | . 11 15 Robot Miss Streak 2 | . 2 2 Penetration Max . | . . . Secondary Targets . | . . . Shots Hit Robots 69 | . 54 15 Core Hits 24 | . 21 3 Critical Kills . | . . . Critical Parts Destroyed . | . . . Critical Strikes 7 | . 5 2 Burn 7 | . 5 2 Melee Attacks . | . . . Impact . | . . . Slashing . | . . . Piercing . | . . . Sneak Attacks . | . . . Combat Hostiles . | . . . Follow-up Attacks . | . . . Damage Inflicted 927 | . 757 170 Guns 798 | . 695 103 Cannons 67 | . . 67 Explosions 62 | . 62 . Melee . | . . . Ramming . | . . . Kinetic 303 | . 236 67 Thermal 486 | . 383 103 Explosive . | . . . Electromagnetic 138 | . 138 . Impact . | . . . Slashing . | . . . Piercing . | . . . Highest Corruption . | . . . Average Corruption . | . . . Corruption Purged . | . . . Corruption Blocked . | . . . Overload Shots . | . . . Overflow Damage . | . . . Projectiles . | . . . Explosions . | . . . Melee . | . . . Knockbacks . | . . . Impact . | . . . Kinetic . | . . . Secondary . | . . . Self-Inflicted Damage 85 | . 85 . Shots 2 | . 2 . Rammed . | . . . Targets Rammed . | . . . Kicked . | . . . Crushed . | . . . Highest Temperature 147 | . 147 . Average Temperature 36 | . 36 . Received Heat Transfer 384 | . 318 66 Siege Activations . | . . . Martial Activations . | . . . Shielding Activations . | . . . Robots Disrupted . | . . . Combat Hostiles . | . . . Robots Corrupted . | . . . Combat Hostiles . | . . . Parts Fried . | . . . Impact Corruptions . | . . . Robots Melted 1 | . 1 . Combat Hostiles 1 | . 1 . Parts Melted 5 | . 5 . Heat Transferred 1853 | . 1420 433 Parts Sabotaged . | . . . Parts Stolen . | . . . Parts Stripped . | . . . Power Chain Reactions 2 | . 2 . Alert | -11 -10 -10 ------- Run | Yrd Mat Sub Maximum Alert Level . | . . . Low Security (%) 100 | . 100 . Level 1 . | . . . Level 2 . | . . . Level 3 . | . . . Level 4 . | . . . Level 5 . | . . . High Security . | . . . Max Security . | . . . Peak Influence 71 | . 71 . Initial . | . . . Average 30 | . 30 . Influence Increases 373 | . 373 . Destroy 0b10 Robot/C 200 | . 200 . Destroy 0b10 Robot/NC 5 | . 5 . Destroy Leader 70 | . 70 . Successful Hack 17 | . 17 . Select Force Hacks 60 | . 60 . Disable Machine 15 | . 15 . Destroy Structure 6 | . 6 . Influence Decreases 373 | . 373 . Time Decay 343 | . 343 . Lost Part 30 | . 30 . Squads Dispatched 6 | . 6 . Investigation 4 | . 4 . Extermination . | . . . Reinforcement 2 | . 2 . Assault . | . . . Garrison . | . . . Intercept . | . . . Searches Triggered . | . . . Construction Impeded . | . . . Haulers Reinforced . | . . . Active Scanning Responses . | . . . Cargo Convoy Interrupts . | . . . Stealth | -11 -10 -10 --------- Run | Yrd Mat Sub Distress Signals 2 | . 2 . Communications Jammed . | . . . Distress Signals . | . . . Times Spotted 17 | . 15 2 Peak Tracking Total 3 | . 3 2 Tactical Retreats . | . . . Traps | -11 -10 -10 ------- Run | Yrd Mat Sub Traps Triggered 5 | . 5 . Indirectly . | . . . Trap Hack Attempts . | . . . Triggered . | . . . Disarmed . | . . . Reprogrammed . | . . . Reused . | . . . Traps Extracted . | . . . Installed . | . . . Triggered . | . . . Machines | -11 -10 -10 ---------- Run | Yrd Mat Sub Machines Disabled 1 | . 1 . Max in Single Turn 1 | . 1 . Machines Repaired . | . . . Machines Dismantled . | . . . Machines Sabotaged . | . . . Overloaded Fab Kills . | . . . Hacking | -11 -10 -10 --------- Run | Yrd Mat Sub Machines Accessed 7 | . 7 . Terminals 5 | . 5 . Fabricators . | . . . Repair Stations . | . . . Recycling Units 2 | . 2 . Scanalyzers . | . . . Garrison Access . | . . . Total Hacks 20 | . 20 . Successful 14 | . 14 . Failed 6 | . 6 . Catastrophic . | . . . Database Lockouts . | . . . Manual 18 | . 18 . Terminals 18 | . 18 . Fabricators . | . . . Repair Stations . | . . . Recycling Units 2 | . 2 . Scanalyzers . | . . . Garrison Access . | . . . Terminal Hacks 2 | . 2 . Alert Level 1 | . 1 . Zone Layout 1 | . 1 . Fabricator Hacks . | . . . Repair Station Hacks . | . . . Recycling Unit Hacks . | . . . Scanalyzer . | . . . Garrison Access Hacks . | . . . Unauthorized Hacks 12 | . 12 . Terminals 10 | . 10 . Botnet 4 | . 4 . Operators 1 | . 1 . Skim 5 | . 5 . Fabricators . | . . . Repair Stations . | . . . Recycling Units 2 | . 2 . Tunnel 2 | . 2 . Scanalyzers . | . . . Garrison Access . | . . . Data Cores Recovered . | . . . Used . | . . . Hacking Detections 4 | . 4 . Full Trace Events . | . . . Feedback Events . | . . . Feedback Blocked . | . . . Robot Schematics Acquired . | . . . Robots Built . | . . . Authchips . | . . . Time . | . . . Total Robot Build Rating . | . . . Part Schematics Acquired . | . . . Parts Built . | . . . Authchips . | . . . Time . | . . . Total Part Build Rating . | . . . Part Studies Acquired . | . . . Parts Repaired . | . . . Time . | . . . Parts Recycled . | . . . Recycled Matter . | . . . Retrieved Matter . | . . . Retrieved Components . | . . . Parts Scanalyzed . | . . . Part Schematics Acquired . | . . . Parts Damaged . | . . . Bothacking | -11 -10 -10 ------------ Run | Yrd Mat Sub Used RIF Installer . | . . . Robots Hacked . | . . . Non-combat . | . . . Combat . | . . . Robot Hacks Applied . | . . . Relay Couplers Released . | . . . Fabnet Peak Effective % . | . . . Robots Rewired . | . . . Allies Hacked . | . . . Hacks Repelled . | . . . Allies | -11 -10 -10 -------- Run | Yrd Mat Sub Total Allies . | . . . Largest Group . | . . . Highest-Rated Group . | . . . Highest-Rated Ally . | . . . Total Orders . | . . . Ally Attacks . | . . . Total Damage . | . . . Kills . | . . . Allies Corrupted . | . . . Allies Melted . | . . . Intel | -11 -10 -10 ------- Run | Yrd Mat Sub Active Infowar (turns) 498 | . 498 . Seismic 498 | . 498 . Robot Analysis Total . | . . . Derelict Logs Recovered . | . . . Drone Launches . | . . . Drone Recoveries . | . . . Exploration | -11 -10 -10 ------------- Run | Yrd Mat Sub Turns Passed 955 | . 870 85 Spaces Moved 563 | 1 528 34 Core 2 | . 2 . Treads . | . . . Legs 556 | 1 526 29 Wheels 5 | . . 5 Hover . | . . . Flight . | . . . Fastest Speed 95 | 120 120 95 Average Speed 120 | 120 120 120 Slowest Speed 250 | 120 250 190 Overloaded Moves . | . . . Propulsion Burnouts . | . . . Robots Hopped . | . . . Potential Cave-ins . | . . . Cave-ins Triggered . | . . . Exploration Rate (%) 29 | 2 82 3 Regions Visited 2 Branch Regions 1 Pre-discovered Areas 2 | . 2 . Known Exits Taken . | . . . Unknown Exits Taken 2 | 1 1 . Scrap Searched . | . . . Spaces Dug . | . . . Terrain Destroyed 3 | . 3 . Melee . | . . . Projectile . | . . . AOE 3 | . 3 . Terrain Rammed . | . . . Walls Destroyed . | . . . Machines Disabled . | . . . Actions | -11 -10 -10 --------- Run | Yrd Mat Sub Total 744 | . 683 61 Wait 80 | . 66 14 Move 561 | . 527 34 Hop . | . . . Pick Up 10 | . 10 . Fast Attach 17 | . 16 1 Attach 3 | . 2 1 Detach . | . . . Swap 6 | . 6 . Drop 12 | . 12 . Fire 55 | . 44 11 Melee . | . . . Ram . | . . . Kick . | . . . Crush . | . . . Escape Stasis . | . . . Rewire . | . . . Trap . | . . . Miscellaneous . | . . . Route ------- -11/Scrapyard -10/Materials (discovered 5 exits: [*Mat x2] / [*Min x2] / [*Sub]) -10/Subcaves History --------- Turn | Location | Event 1 | -11/Scrapyard | Discovered new exit (range 0) 1 | -11/Scrapyard | Entered Materials 107 | -10/Materials | Discovered new exit (range 15) 129 | -10/Materials | Discovered new exit (range 16) 293 | -10/Materials | Discovered new exit (range 15) 309 | -10/Materials | Build established: Mutant 423 | -10/Materials | Discovered new exit (range 10) 624 | -10/Materials | Core integrity fell below 50% 688 | -10/Materials | Discovered new exit (range 14) 871 | -10/Materials | Entered Subcaves 872 | -10/Subcaves | Approached by a straggling Scientist 949 | -10/Subcaves | Core integrity fell below 20% 956 | -10/Subcaves | Destroyed by 5K-630(R) with Subdweller Laser Last Messages --------------- can get us both out of this nasty situation. At least I think I can... The group I got separated from was talking about a shortcut back to the UFD." 00891_ 5K-630(R) emerges from the Twisted Machinery. 00914_ Subatomizers dissect the Wheel. 00916_ Tech Extrapolator violently self-destructs. 00916_ Aluminum Leg destroyed. 00916_ Acquired 13 matter. 00920_ Acquired Wheel. 00940_ Aluminum Leg destroyed. 00943_ Lgt. Cannon destroyed. 00944_ Sml. Laser destroyed. 00947_ IB-EF9(R) suffers critical hit (Burn). 00947_ IB-EF9(R) destroyed. 00949_ 5K-630(R) suffers critical hit (Burn). 00953_ Subatomizers dissect the Sub. Power Source. Map ----- +----------------------------------------------------+ | ?????????????????????????????????????????????????? | | ?????????????????????????????????????????????????? | | ?????????????????????????????????????????????????? | | ?????????????????????????????????????????????????? | | ?????????????????????????????????????????????????? | | ?????????????????????????????????????????????????? | | ?????????????????????????????????????????????????? | | ?????????????????????????????????????????????????? | | ?????????????????????????????????????????????????? | | ?????????????????????????????????????????????????? | | ?????????????????????????????????????????????????? | | ???????????????????????????????????? ???????????? | | ??????????????????????????????????? ????????????? | | ????????????????????????????""???? ????????????? | | ???????????????????????????? ""??? #????????????? | | ???????????????????????????"""#??? ?????????????? | | ??????????????????????????? #?? ##????????????? | | ??????????????????????????? ??? #????????????? | | ?????????????????????????? #??? #?????????????? | | ?????????????????????????? #### ##????#???????? | | ?????????????????????##### ### " #### #???????? | | ?????????????????????# #?# #???????? | | ??????????????????????# ### ##??????? | | ??????????????????????# ### #??????? | | ??????????????????????## ### ### #??????? | | ?????????????????????## @# #?????????????? | | ????????????????????## *%& #?????????????? | | ????????????????????# %R #####?????????????? | | ???????????????????## # # ##?????????????????? | | ?????????????####### # ## #??????????????????? | | ?????????????# #??????????????????? | | ?????????????# #??????????????????? | | ???????? # ##??????????????????? | | ???????? ######???????????????????? | | ????????# # # #????????????????????????? | | ??????????????###########????????????????????????? | | ?????????????????????????????????????????????????? | | ?????????????????????????????????????????????????? | | ?????????????????????????????????????????????????? | | ?????????????????????????????????????????????????? | | ?????????????????????????????????????????????????? | | ?????????????????????????????????????????????????? | | ?????????????????????????????????????????????????? | | ?????????????????????????????????????????????????? | | ?????????????????????????????????????????????????? | | ?????????????????????????????????????????????????? | | ?????????????????????????????????????????????????? | | ?????????????????????????????????????????????????? | | ?????????????????????????????????????????????????? | | ?????????????????????????????????????????????????? | +----------------------------------------------------+ Best States ------------- Heat Dissipation 25 Energy Generation 10 Energy Capacity 250 Matter Stores 300 Matter Capacity 300 Sight Range 16 Terrain Scan Density 10 Core Shielding 20 Evasion (%) 55 Item Schematics ----------------- None Robot Schematics ------------------ None Fabricated ------------ Nothing Repaired ---------- Nothing Studied --------- None Alien Tech Used ----------------- None Achievements -------------- None Challenges ------------ None Game ------ Seed AccelerationAntimatterChip Manual? 0 Play Time 00:12:50 Cumulative 164.3 hours Start 2026.03.31 @ 22:19:15 End 2026.03.31 @ 22:32:05 Sessions 1 Manual Loads 0 Difficulty Rogue Special Mode None Game No. 177 Rogue 175 Adventurer 2 Explorer 0 Win Type - Total 0 Types 0/0/0/0/0/0/0/0/0/0 Lore% 67 Gallery% 55 Achievement% 34 Wizard Run 0 Options --------- Layout 2 ASCII 0 Keyboard 1 Movement Numpad Keybinds 0 Fullscreen 1 Font 24/Smallcaps Map View 50x44 Zoom Use 0% Tactical HUD 1 Map Filters NONE Filters NONE Steam SD RUN: a4d99929-d09c-4c94-a498-603eb32df63b